[Event "Titled Tuesday Blitz February 28 Late 2023"]
[White "Kovacs, Klara"]
[Black "Golubev, Mikhail"]
[WhiteFideId "733210"]
[BlackFideId "14100983"]
[WhiteElo "2179"]
[BlackElo "2374"]
[Result "0-1"]
[Round "09"]
[TimeControl "180+2"]
[Date "2023.02.28"]
[WhiteClock "0:00:05"]
[BlackClock "0:00:03"]

1. d4 {[%clk 0:02:49]}  d6 {[%clk 0:03:00]} 2. e4 {[%clk 0:02:47]}  Nf6 {[%clk 0:03:00]} 3. Nc3 {[%clk 0:02:47]}  g6 {[%clk 0:03:00]} 4. Bg5 {[%clk 0:02:43]}  c6 {[%clk 0:02:59]} 5. Qd2 {[%clk 0:02:44]}  b5 {[%clk 0:02:57]} 6. a3 {[%clk 0:02:43]}  Nbd7 {[%clk 0:02:54]} 7. O-O-O {[%clk 0:02:43]}  a5 {[%clk 0:02:53]} 8. e5 {[%clk 0:02:40]}  b4 {[%clk 0:02:50]} 9. exf6 {[%clk 0:02:30]}  bxc3 {[%clk 0:02:32]} 10. Qxc3 {[%clk 0:02:30]}  Nxf6 {[%clk 0:02:25]} 11. Bxf6 {[%clk 0:02:27]}  exf6 {[%clk 0:02:24]} 12. Re1+ {[%clk 0:02:27]}  Be7 {[%clk 0:02:25]} 13. Qxc6+ {[%clk 0:02:24]}  Bd7 {[%clk 0:02:25]} 14. Qxd6 {[%clk 0:02:24]}  Kf8 {[%clk 0:02:03]} 15. Qd5 {[%clk 0:02:12]}  Rc8 {[%clk 0:01:32]} 16. Bc4 {[%clk 0:02:03]}  Qe8 {[%clk 0:01:32]} 17. Nf3 {[%clk 0:01:59]}  Bc6 {[%clk 0:01:19]} 18. Qxa5 {[%clk 0:01:32]}  Bxf3 {[%clk 0:01:15]} 19. gxf3 {[%clk 0:01:21]}  Rxc4 {[%clk 0:01:09]} 20. d5 {[%clk 0:01:22]}  Qc8 {[%clk 0:01:01]} 21. c3 {[%clk 0:01:21]}  f5 {[%clk 0:01:00]} 22. Qb6 {[%clk 0:01:14]}  Rxc3+ {[%clk 0:00:35]} 23. Kb1 {[%clk 0:00:41]}  Rc4 {[%clk 0:00:09]} 24. d6 {[%clk 0:00:36]}  Bd8 {[%clk 0:00:05]} 25. Qb5 {[%clk 0:00:24]}  Bf6 {[%clk 0:00:02]} 26. d7 {[%clk 0:00:22]}  Qc5 {[%clk 0:00:02]} 27. Re8+ {[%clk 0:00:21]}  Kg7 {[%clk 0:00:02]} 28. Qxc5 {[%clk 0:00:21]}  Rxc5 {[%clk 0:00:01]} 29. Rxh8 {[%clk 0:00:20]}  Kxh8 {[%clk 0:00:02]} 30. Re1 {[%clk 0:00:20]}  Kg7 {[%clk 0:00:02]} 31. Re8 {[%clk 0:00:20]}  Rd5 {[%clk 0:00:02]} 32. a4 {[%clk 0:00:16]}  Rxd7 {[%clk 0:00:02]} 33. Ka2 {[%clk 0:00:16]}  Rb7 {[%clk 0:00:02]} 34. Re2 {[%clk 0:00:16]}  Bd4 {[%clk 0:00:01]} 35. b3 {[%clk 0:00:16]}  Rc7 {[%clk 0:00:01]} 36. Rd2 {[%clk 0:00:16]}  Bb6 {[%clk 0:00:01]} 37. b4 {[%clk 0:00:14]}  Rc3 {[%clk 0:00:01]} 38. a5 {[%clk 0:00:15]}  Bxa5 {[%clk 0:00:01]} 39. bxa5 {[%clk 0:00:14]}  Rc5 {[%clk 0:00:02]} 40. Kb3 {[%clk 0:00:14]}  Rxa5 {[%clk 0:00:02]} 41. Kc4 {[%clk 0:00:15]}  Ra6 {[%clk 0:00:02]} 42. Rd7 {[%clk 0:00:15]}  Re6 {[%clk 0:00:02]} 43. Kd3 {[%clk 0:00:15]}  Re5 {[%clk 0:00:02]} 44. Rd6 {[%clk 0:00:15]}  Re8 {[%clk 0:00:02]} 45. Kd2 {[%clk 0:00:14]}  h6 {[%clk 0:00:02]} 46. Rd7 {[%clk 0:00:14]}  g5 {[%clk 0:00:03]} 47. h3 {[%clk 0:00:14]}  Kg6 {[%clk 0:00:03]} 48. Rd6+ {[%clk 0:00:14]}  f6 {[%clk 0:00:03]} 49. Rd7 {[%clk 0:00:14]}  Re6 {[%clk 0:00:03]} 50. Rc7 {[%clk 0:00:13]}  f4 {[%clk 0:00:03]} 51. Rd7 {[%clk 0:00:13]}  Kh5 {[%clk 0:00:03]} 52. Rh7 {[%clk 0:00:12]}  f5 {[%clk 0:00:03]} 53. Rf7 {[%clk 0:00:12]}  Kh4 {[%clk 0:00:03]} 54. Rxf5 {[%clk 0:00:11]}  Kxh3 {[%clk 0:00:04]} 55. Rd5 {[%clk 0:00:04]}  Kg2 {[%clk 0:00:04]} 56. Rd4 {[%clk 0:00:03]}  Kxf3 {[%clk 0:00:03]} 57. Rd3+ {[%clk 0:00:04]}  Kxf2 {[%clk 0:00:03]} 58. Rh3 {[%clk 0:00:04]}  g4 {[%clk 0:00:03]} 59. Rh5 {[%clk 0:00:04]}  g3 {[%clk 0:00:03]} 60. Rf5 {[%clk 0:00:04]}  Kf3 {[%clk 0:00:03]} 61. Rf7 {[%clk 0:00:04]}  g2 {[%clk 0:00:03]} 62. Rg7 {[%clk 0:00:04]}  Kf2 {[%clk 0:00:03]} 63. Rg8 {[%clk 0:00:05]}  f3 {[%clk 0:00:03]} 0-1


[Site "https://www.chess.com"]

[Event "Titled Tuesday Blitz February 28 Late 2023"]
[White "Fajdetic, Hrvoje"]
[Black "Mazurkiewicz, Michal"]
[WhiteFideId "14501945"]
[BlackFideId "1124943"]
[WhiteElo "2185"]
[BlackElo "2054"]
[Result "0-1"]
[Round "09"]
[TimeControl "180+2"]
[Date "2023.02.28"]
[WhiteClock "0:00:11"]
[BlackClock "0:01:33"]

1. f4 {[%clk 0:02:58]}  g6 {[%clk 0:02:57]} 2. e4 {[%clk 0:02:57]}  Bg7 {[%clk 0:02:57]} 3. Nf3 {[%clk 0:02:56]}  d6 {[%clk 0:02:58]} 4. d3 {[%clk 0:02:52]}  c5 {[%clk 0:02:57]} 5. Be2 {[%clk 0:02:52]}  Nc6 {[%clk 0:02:58]} 6. O-O {[%clk 0:02:52]}  e6 {[%clk 0:02:59]} 7. Qe1 {[%clk 0:02:52]}  Nge7 {[%clk 0:02:59]} 8. Nc3 {[%clk 0:02:50]}  Nd4 {[%clk 0:02:57]} 9. Bd1 {[%clk 0:02:49]}  O-O {[%clk 0:02:56]} 10. Ne2 {[%clk 0:02:44]}  Nxf3+ {[%clk 0:02:53]} 11. Rxf3 {[%clk 0:02:45]}  f5 {[%clk 0:02:52]} 12. Rb1 {[%clk 0:02:07]}  b6 {[%clk 0:02:47]} 13. h3 {[%clk 0:01:53]}  Bb7 {[%clk 0:02:47]} 14. Ng3 {[%clk 0:01:48]}  e5 {[%clk 0:02:46]} 15. fxe5 {[%clk 0:01:45]}  dxe5 {[%clk 0:02:45]} 16. Bg5 {[%clk 0:01:45]}  h6 {[%clk 0:02:42]} 17. Bxe7 {[%clk 0:01:44]}  Qxe7 {[%clk 0:02:42]} 18. Rf2 {[%clk 0:01:34]}  Qh4 {[%clk 0:02:39]} 19. Kh2 {[%clk 0:01:27]}  f4 {[%clk 0:02:22]} 20. Nf1 {[%clk 0:01:19]}  h5 {[%clk 0:02:13]} 21. b4 {[%clk 0:01:13]}  cxb4 {[%clk 0:02:12]} 22. Rxb4 {[%clk 0:01:06]}  Bh6 {[%clk 0:02:00]} 23. Bf3 {[%clk 0:01:03]}  Bc8 {[%clk 0:01:52]} 24. d4 {[%clk 0:00:54]}  g5 {[%clk 0:01:50]} 25. Re2 {[%clk 0:00:44]}  Qxe1 {[%clk 0:01:49]} 26. Rxe1 {[%clk 0:00:44]}  g4 {[%clk 0:01:50]} 27. hxg4 {[%clk 0:00:40]}  hxg4 {[%clk 0:01:50]} 28. Be2 {[%clk 0:00:38]}  f3 {[%clk 0:01:50]} 29. Bc4+ {[%clk 0:00:35]}  Kg7 {[%clk 0:01:44]} 30. dxe5 {[%clk 0:00:27]}  Bf4+ {[%clk 0:01:42]} 31. g3 {[%clk 0:00:24]}  Bxe5 {[%clk 0:01:41]} 32. Bd5 {[%clk 0:00:18]}  Rb8 {[%clk 0:01:37]} 33. Kg1 {[%clk 0:00:11]}  f2+ {[%clk 0:01:33]} 0-1


[Site "https://www.chess.com"]

[Event "Titled Tuesday Blitz February 28 Late 2023"]
[White "Eckert, Doug"]
[Black "Dudzinski, Pawel"]
[WhiteFideId "2001993"]
[BlackFideId "1117890"]
[WhiteElo "2202"]
[BlackElo "2099"]
[Result "0-1"]
[Round "09"]
[TimeControl "180+2"]
[Date "2023.02.28"]
[WhiteClock "0:00:42"]
[BlackClock "0:01:14"]

1. d4 {[%clk 0:03:00]}  d5 {[%clk 0:02:54]} 2. c4 {[%clk 0:03:00]}  c6 {[%clk 0:02:54]} 3. Nf3 {[%clk 0:03:00]}  e6 {[%clk 0:02:54]} 4. Qb3 {[%clk 0:03:00]}  dxc4 {[%clk 0:02:50]} 5. Qxc4 {[%clk 0:02:59]}  Nd7 {[%clk 0:02:50]} 6. g3 {[%clk 0:02:56]}  Nb6 {[%clk 0:02:50]} 7. Qc2 {[%clk 0:02:55]}  Nf6 {[%clk 0:02:45]} 8. Bg2 {[%clk 0:02:55]}  Be7 {[%clk 0:02:45]} 9. O-O {[%clk 0:02:55]}  O-O {[%clk 0:02:46]} 10. Rd1 {[%clk 0:02:55]}  Bd7 {[%clk 0:02:46]} 11. Nbd2 {[%clk 0:02:54]}  Rc8 {[%clk 0:02:47]} 12. a4 {[%clk 0:02:52]}  c5 {[%clk 0:02:46]} 13. Qb3 {[%clk 0:02:37]}  c4 {[%clk 0:02:22]} 14. Qc2 {[%clk 0:02:36]}  a5 {[%clk 0:02:20]} 15. Ne5 {[%clk 0:02:26]}  Qc7 {[%clk 0:02:15]} 16. Ndf3 {[%clk 0:02:15]}  Nfd5 {[%clk 0:02:05]} 17. Bd2 {[%clk 0:02:11]}  Nb4 {[%clk 0:01:54]} 18. Bxb4 {[%clk 0:02:10]}  axb4 {[%clk 0:01:44]} 19. a5 {[%clk 0:02:09]}  Nd5 {[%clk 0:01:43]} 20. Nxd7 {[%clk 0:02:09]}  Qxd7 {[%clk 0:01:41]} 21. Ne5 {[%clk 0:02:09]}  Qb5 {[%clk 0:01:40]} 22. e4 {[%clk 0:01:59]}  b3 {[%clk 0:01:40]} 23. Qd2 {[%clk 0:01:47]}  Nb4 {[%clk 0:01:39]} 24. Bf1 {[%clk 0:01:46]}  Nc2 {[%clk 0:01:38]} 25. Rac1 {[%clk 0:01:41]}  f6 {[%clk 0:01:31]} 26. Nf3 {[%clk 0:00:53]}  Bb4 {[%clk 0:01:31]} 27. Qf4 {[%clk 0:00:51]}  Qxa5 {[%clk 0:01:31]} 28. d5 {[%clk 0:00:48]}  e5 {[%clk 0:01:26]} 29. Qg4 {[%clk 0:00:48]}  Qb6 {[%clk 0:01:18]} 30. Nh4 {[%clk 0:00:46]}  Kh8 {[%clk 0:01:15]} 31. Nf5 {[%clk 0:00:45]}  g6 {[%clk 0:01:15]} 32. Ne7 {[%clk 0:00:42]}  Bxe7 {[%clk 0:01:14]} 0-1


[Site "https://www.chess.com"]

[Event "Titled Tuesday Blitz February 28 Late 2023"]
[White "Torres Dominguez, David"]
[Black "Rottenwohrer Suarez, Juan"]
[WhiteFideId "2220857"]
[BlackFideId "32068182"]
[WhiteElo "1999"]
[BlackElo "2174"]
[Result "0-1"]
[Round "09"]
[TimeControl "180+2"]
[Date "2023.02.28"]
[WhiteClock "0:00:27"]
[BlackClock "0:02:05"]

1. e4 {[%clk 0:02:53]}  c5 {[%clk 0:03:00]} 2. Nc3 {[%clk 0:02:50]}  g6 {[%clk 0:03:00]} 3. d4 {[%clk 0:02:48]}  cxd4 {[%clk 0:03:00]} 4. Qxd4 {[%clk 0:02:47]}  Nf6 {[%clk 0:03:01]} 5. Bb5 {[%clk 0:02:46]}  a6 {[%clk 0:03:01]} 6. e5 {[%clk 0:02:46]}  axb5 {[%clk 0:03:01]} 7. exf6 {[%clk 0:02:44]}  Nc6 {[%clk 0:03:02]} 8. fxe7 {[%clk 0:02:39]}  Qxe7+ {[%clk 0:03:01]} 9. Qe3 {[%clk 0:02:39]}  Bg7 {[%clk 0:02:55]} 10. Nge2 {[%clk 0:02:35]}  b4 {[%clk 0:02:49]} 11. Nd5 {[%clk 0:02:26]}  Qxe3 {[%clk 0:02:47]} 12. Nxe3 {[%clk 0:01:48]}  O-O {[%clk 0:02:48]} 13. c3 {[%clk 0:01:43]}  d6 {[%clk 0:02:46]} 14. O-O {[%clk 0:01:35]}  Be6 {[%clk 0:02:45]} 15. Rd1 {[%clk 0:01:01]}  Rfd8 {[%clk 0:02:38]} 16. c4 {[%clk 0:00:58]}  Ne5 {[%clk 0:02:31]} 17. Bd2 {[%clk 0:00:40]}  Nxc4 {[%clk 0:02:28]} 18. Nxc4 {[%clk 0:00:39]}  Bxc4 {[%clk 0:02:27]} 19. Nf4 {[%clk 0:00:34]}  Bxb2 {[%clk 0:02:21]} 20. Rab1 {[%clk 0:00:31]}  Bc3 {[%clk 0:02:22]} 21. Bxc3 {[%clk 0:00:29]}  bxc3 {[%clk 0:02:22]} 22. Rdc1 {[%clk 0:00:27]}  Ra3 {[%clk 0:02:05]} 0-1


[Site "https://www.chess.com"]

[Event "Titled Tuesday Blitz February 28 Late 2023"]
[White "Liu, Eric"]
[Black "Romero Ruscalleda, Josep"]
[WhiteFideId "30960240"]
[BlackFideId "2231859"]
[WhiteElo "2094"]
[BlackElo "2183"]
[Result "1-0"]
[Round "09"]
[TimeControl "180+2"]
[Date "2023.02.28"]
[WhiteClock "0:01:12"]
[BlackClock "0:00:13"]

1. b3 {[%clk 0:03:00]}  e5 {[%clk 0:02:59]} 2. Bb2 {[%clk 0:03:01]}  d6 {[%clk 0:02:59]} 3. g3 {[%clk 0:02:54]}  g6 {[%clk 0:02:59]} 4. Bg2 {[%clk 0:02:55]}  Bg7 {[%clk 0:03:00]} 5. d4 {[%clk 0:02:55]}  Nd7 {[%clk 0:02:56]} 6. dxe5 {[%clk 0:02:55]}  Nxe5 {[%clk 0:02:55]} 7. Qc1 {[%clk 0:02:55]}  Nf6 {[%clk 0:02:47]} 8. Nd2 {[%clk 0:02:55]}  O-O {[%clk 0:02:46]} 9. Ngf3 {[%clk 0:02:55]}  Nxf3+ {[%clk 0:02:40]} 10. Nxf3 {[%clk 0:02:56]}  Bf5 {[%clk 0:02:39]} 11. O-O {[%clk 0:02:56]}  Qc8 {[%clk 0:02:38]} 12. Re1 {[%clk 0:02:52]}  Be4 {[%clk 0:02:36]} 13. c4 {[%clk 0:02:51]}  Re8 {[%clk 0:02:29]} 14. Qd2 {[%clk 0:02:43]}  Qg4 {[%clk 0:02:14]} 15. Rad1 {[%clk 0:02:36]}  Rad8 {[%clk 0:02:13]} 16. Bc3 {[%clk 0:02:33]}  Bc6 {[%clk 0:01:54]} 17. Qb2 {[%clk 0:02:31]}  Nh5 {[%clk 0:01:48]} 18. Bxg7 {[%clk 0:02:21]}  Nxg7 {[%clk 0:01:48]} 19. Rd4 {[%clk 0:02:22]}  Qe6 {[%clk 0:01:41]} 20. e4 {[%clk 0:02:20]}  Qf6 {[%clk 0:01:33]} 21. Qc2 {[%clk 0:02:14]}  Ne6 {[%clk 0:01:30]} 22. Rd2 {[%clk 0:02:13]}  Kg7 {[%clk 0:01:26]} 23. b4 {[%clk 0:02:10]}  a6 {[%clk 0:01:24]} 24. a4 {[%clk 0:02:10]}  b6 {[%clk 0:01:22]} 25. h4 {[%clk 0:02:07]}  h6 {[%clk 0:01:19]} 26. Qd1 {[%clk 0:02:05]}  Nf8 {[%clk 0:01:12]} 27. Re3 {[%clk 0:02:04]}  Bxe4 {[%clk 0:01:06]} 28. Qe1 {[%clk 0:02:01]}  Bc6 {[%clk 0:01:06]} 29. Nd4 {[%clk 0:01:51]}  Rxe3 {[%clk 0:01:00]} 30. Qxe3 {[%clk 0:01:52]}  Bxg2 {[%clk 0:00:59]} 31. Kxg2 {[%clk 0:01:53]}  Ne6 {[%clk 0:00:55]} 32. Nc6 {[%clk 0:01:52]}  Rd7 {[%clk 0:00:52]} 33. a5 {[%clk 0:01:52]}  bxa5 {[%clk 0:00:50]} 34. bxa5 {[%clk 0:01:53]}  Nc5 {[%clk 0:00:48]} 35. Qe8 {[%clk 0:01:43]}  Qe6 {[%clk 0:00:47]} 36. Qxe6 {[%clk 0:01:40]}  fxe6 {[%clk 0:00:47]} 37. Rb2 {[%clk 0:01:39]}  e5 {[%clk 0:00:42]} 38. Rb8 {[%clk 0:01:37]}  e4 {[%clk 0:00:36]} 39. Ra8 {[%clk 0:01:32]}  Rf7 {[%clk 0:00:30]} 40. Ra7 {[%clk 0:01:31]}  Nd3 {[%clk 0:00:26]} 41. Rxa6 {[%clk 0:01:24]}  Rxf2+ {[%clk 0:00:25]} 42. Kg1 {[%clk 0:01:24]}  Rc2 {[%clk 0:00:22]} 43. Ra7 {[%clk 0:01:22]}  Rxc4 {[%clk 0:00:20]} 44. Rxc7+ {[%clk 0:01:22]}  Kf8 {[%clk 0:00:20]} 45. a6 {[%clk 0:01:17]}  Rc1+ {[%clk 0:00:17]} 46. Kg2 {[%clk 0:01:15]}  Rc2+ {[%clk 0:00:17]} 47. Kf1 {[%clk 0:01:13]}  Rf2+ {[%clk 0:00:16]} 48. Kg1 {[%clk 0:01:13]}  Rc2 {[%clk 0:00:16]} 49. a7 {[%clk 0:01:13]}  Ne1 {[%clk 0:00:13]} 50. a8=Q# {[%clk 0:01:12]} 1-0


[Site "https://www.chess.com"]

[Event "Titled Tuesday Blitz February 28 Late 2023"]
[White "Senft, Sean"]
[Black "ArchibaldCerveza29"]
[WhiteFideId "2044960"]
[WhiteElo "1989"]
[BlackElo "2490"]
[Result "0-1"]
[Round "09"]
[TimeControl "180+2"]
[Date "2023.02.28"]
[WhiteClock "0:00:04"]
[BlackClock "0:00:46"]

1. e4 {[%clk 0:02:55]}  e5 {[%clk 0:03:00]} 2. Nf3 {[%clk 0:02:55]}  Nc6 {[%clk 0:03:00]} 3. Bb5 {[%clk 0:02:55]}  g6 {[%clk 0:03:01]} 4. O-O {[%clk 0:02:50]}  Bg7 {[%clk 0:02:57]} 5. c3 {[%clk 0:02:48]}  a6 {[%clk 0:02:57]} 6. Ba4 {[%clk 0:02:47]}  Nge7 {[%clk 0:02:57]} 7. d4 {[%clk 0:02:45]}  exd4 {[%clk 0:02:58]} 8. cxd4 {[%clk 0:02:45]}  b5 {[%clk 0:02:59]} 9. Bb3 {[%clk 0:02:41]}  O-O {[%clk 0:02:59]} 10. Bg5 {[%clk 0:02:36]}  h6 {[%clk 0:02:59]} 11. Bh4 {[%clk 0:02:36]}  d6 {[%clk 0:02:58]} 12. Nc3 {[%clk 0:02:34]}  Bg4 {[%clk 0:02:56]} 13. Bxe7 {[%clk 0:01:53]}  Qxe7 {[%clk 0:02:51]} 14. Bd5 {[%clk 0:01:49]}  Bxf3 {[%clk 0:02:13]} 15. gxf3 {[%clk 0:01:38]}  Qd7 {[%clk 0:02:10]} 16. Qd3 {[%clk 0:01:29]}  Rae8 {[%clk 0:02:06]} 17. Bxc6 {[%clk 0:01:29]}  Qxc6 {[%clk 0:02:07]} 18. Kh1 {[%clk 0:01:25]}  Kh8 {[%clk 0:02:04]} 19. Rg1 {[%clk 0:01:22]}  Qd7 {[%clk 0:01:59]} 20. Rg3 {[%clk 0:01:22]}  b4 {[%clk 0:01:55]} 21. Ne2 {[%clk 0:01:22]}  a5 {[%clk 0:01:51]} 22. Rag1 {[%clk 0:01:21]}  Qa4 {[%clk 0:01:48]} 23. a3 {[%clk 0:00:56]}  c5 {[%clk 0:01:46]} 24. f4 {[%clk 0:00:50]}  bxa3 {[%clk 0:01:36]} 25. bxa3 {[%clk 0:00:50]}  Bxd4 {[%clk 0:01:08]} 26. Qf3 {[%clk 0:00:30]}  Bf6 {[%clk 0:00:59]} 27. Nc3 {[%clk 0:00:17]}  Qxa3 {[%clk 0:00:56]} 28. Nd5 {[%clk 0:00:09]}  Qxf3+ {[%clk 0:00:56]} 29. Rxf3 {[%clk 0:00:10]}  Bd4 {[%clk 0:00:57]} 30. Ra3 {[%clk 0:00:07]}  Rxe4 {[%clk 0:00:54]} 31. Rxa5 {[%clk 0:00:06]}  Bxf2 {[%clk 0:00:54]} 32. Rf1 {[%clk 0:00:06]}  Re1 {[%clk 0:00:54]} 33. Kg2 {[%clk 0:00:06]}  Rxf1 {[%clk 0:00:52]} 34. Kxf1 {[%clk 0:00:07]}  Bd4 {[%clk 0:00:52]} 35. Ra7 {[%clk 0:00:06]}  Kg7 {[%clk 0:00:51]} 36. Rd7 {[%clk 0:00:06]}  Ra8 {[%clk 0:00:46]} 37. Rxd6 {[%clk 0:00:06]}  Ra2 {[%clk 0:00:46]} 38. f5 {[%clk 0:00:05]}  Rf2+ {[%clk 0:00:45]} 39. Ke1 {[%clk 0:00:04]}  Rxf5 {[%clk 0:00:46]} 40. Ne7 {[%clk 0:00:04]}  Re5+ {[%clk 0:00:46]} 0-1


[Site "https://www.chess.com"]

[Event "Titled Tuesday Blitz February 28 Late 2023"]
[White "Seletsky, Grigory"]
[Black "Kaufman, Raymond"]
[WhiteFideId "14112191"]
[BlackFideId "2015056"]
[WhiteElo "2490"]
[BlackElo "2321"]
[Result "1-0"]
[Round "09"]
[TimeControl "180+2"]
[Date "2023.02.28"]
[WhiteClock "0:00:37"]
[BlackClock "0:00:06"]

1. e4 {[%clk 0:02:52]}  e5 {[%clk 0:02:44]} 2. Nf3 {[%clk 0:02:39]}  Nc6 {[%clk 0:02:44]} 3. Bc4 {[%clk 0:02:38]}  Bc5 {[%clk 0:02:42]} 4. O-O {[%clk 0:02:37]}  Nf6 {[%clk 0:02:41]} 5. d3 {[%clk 0:02:37]}  d6 {[%clk 0:02:35]} 6. c3 {[%clk 0:02:35]}  O-O {[%clk 0:02:28]} 7. Bg5 {[%clk 0:02:32]}  h6 {[%clk 0:02:25]} 8. Bh4 {[%clk 0:02:33]}  g5 {[%clk 0:02:16]} 9. Bg3 {[%clk 0:02:31]}  Bg4 {[%clk 0:01:40]} 10. Nbd2 {[%clk 0:02:30]}  a5 {[%clk 0:01:34]} 11. a4 {[%clk 0:02:29]}  Nh5 {[%clk 0:01:30]} 12. Re1 {[%clk 0:02:25]}  Qf6 {[%clk 0:01:27]} 13. Nf1 {[%clk 0:02:14]}  Kg7 {[%clk 0:01:11]} 14. Ne3 {[%clk 0:02:12]}  Bxe3 {[%clk 0:00:50]} 15. Rxe3 {[%clk 0:02:03]}  Nf4 {[%clk 0:00:48]} 16. Qd2 {[%clk 0:01:50]}  Ne7 {[%clk 0:00:43]} 17. Ne1 {[%clk 0:01:48]}  Neg6 {[%clk 0:00:40]} 18. f3 {[%clk 0:01:47]}  Bd7 {[%clk 0:00:36]} 19. d4 {[%clk 0:01:42]}  Rad8 {[%clk 0:00:34]} 20. Bf2 {[%clk 0:01:28]}  h5 {[%clk 0:00:32]} 21. Bf1 {[%clk 0:01:22]}  h4 {[%clk 0:00:28]} 22. h3 {[%clk 0:01:20]}  Nh5 {[%clk 0:00:23]} 23. d5 {[%clk 0:01:19]}  Ngf4 {[%clk 0:00:20]} 24. c4 {[%clk 0:01:17]}  b6 {[%clk 0:00:20]} 25. b4 {[%clk 0:01:16]}  axb4 {[%clk 0:00:20]} 26. Qxb4 {[%clk 0:01:16]}  Ng3 {[%clk 0:00:19]} 27. a5 {[%clk 0:01:11]}  bxa5 {[%clk 0:00:18]} 28. Qxa5 {[%clk 0:01:09]}  Qg6 {[%clk 0:00:15]} 29. Qxc7 {[%clk 0:01:07]}  Nxf1 {[%clk 0:00:13]} 30. Kxf1 {[%clk 0:01:05]}  Nxh3 {[%clk 0:00:14]} 31. gxh3 {[%clk 0:01:04]}  Bxh3+ {[%clk 0:00:15]} 32. Ke2 {[%clk 0:01:04]}  g4 {[%clk 0:00:14]} 33. Bxh4 {[%clk 0:00:57]}  gxf3+ {[%clk 0:00:12]} 34. Nxf3 {[%clk 0:00:54]}  Rd7 {[%clk 0:00:10]} 35. Qa5 {[%clk 0:00:48]}  Bg4 {[%clk 0:00:07]} 36. Qe1 {[%clk 0:00:45]}  f5 {[%clk 0:00:06]} 37. Kd2 {[%clk 0:00:37]} 1-0


[Site "https://www.chess.com"]

[Event "Titled Tuesday Blitz February 28 Late 2023"]
[White "Melikhov, Evgeny V."]
[Black "Mikhalsky, Vladimir"]
[WhiteFideId "4122046"]
[BlackFideId "14144352"]
[WhiteElo "2158"]
[BlackElo "2272"]
[Result "1-0"]
[Round "09"]
[TimeControl "180+2"]
[Date "2023.02.28"]
[WhiteClock "0:00:56"]
[BlackClock "0:01:25"]

1. d4 {[%clk 0:03:00]}  Nf6 {[%clk 0:02:59]} 2. c4 {[%clk 0:03:00]}  g6 {[%clk 0:02:59]} 3. Nc3 {[%clk 0:03:01]}  Bg7 {[%clk 0:02:59]} 4. e4 {[%clk 0:03:01]}  O-O {[%clk 0:02:58]} 5. Be3 {[%clk 0:03:00]}  d6 {[%clk 0:02:58]} 6. f3 {[%clk 0:03:00]}  Nc6 {[%clk 0:02:57]} 7. Nge2 {[%clk 0:02:59]}  a6 {[%clk 0:02:58]} 8. Qd2 {[%clk 0:02:58]}  Re8 {[%clk 0:02:57]} 9. Bh6 {[%clk 0:02:53]}  e5 {[%clk 0:02:52]} 10. d5 {[%clk 0:02:51]}  Nd4 {[%clk 0:02:51]} 11. Bxg7 {[%clk 0:02:49]}  Kxg7 {[%clk 0:02:41]} 12. Nxd4 {[%clk 0:02:47]}  exd4 {[%clk 0:02:41]} 13. Qxd4 {[%clk 0:02:46]}  c5 {[%clk 0:02:40]} 14. dxc6 {[%clk 0:02:37]}  bxc6 {[%clk 0:02:40]} 15. O-O-O {[%clk 0:02:35]}  c5 {[%clk 0:02:36]} 16. Qxd6 {[%clk 0:02:32]}  Qa5 {[%clk 0:02:34]} 17. a3 {[%clk 0:01:50]}  Be6 {[%clk 0:02:30]} 18. Nd5 {[%clk 0:01:47]}  Rab8 {[%clk 0:02:14]} 19. Nxf6 {[%clk 0:01:24]}  Kxf6 {[%clk 0:02:13]} 20. Be2 {[%clk 0:01:22]}  Qa4 {[%clk 0:02:08]} 21. Qxc5 {[%clk 0:01:11]}  Kg7 {[%clk 0:02:02]} 22. Qd4+ {[%clk 0:01:05]}  Kg8 {[%clk 0:02:02]} 23. Qc3 {[%clk 0:01:03]}  Rec8 {[%clk 0:01:56]} 24. Rd4 {[%clk 0:01:01]}  Rb3 {[%clk 0:01:46]} 25. Qd2 {[%clk 0:01:00]}  Bxc4 {[%clk 0:01:35]} 26. Rd8+ {[%clk 0:00:58]}  Rxd8 {[%clk 0:01:26]} 27. Qxd8+ {[%clk 0:00:57]}  Kg7 {[%clk 0:01:26]} 28. Qd4+ {[%clk 0:00:56]}  Kh6 {[%clk 0:01:25]} 29. Qxc4 {[%clk 0:00:56]} 1-0


[Site "https://www.chess.com"]

[Event "Titled Tuesday Blitz February 28 Late 2023"]
[White "Kostiukov, Alexandr"]
[Black "olga-belka"]
[WhiteFideId "14108100"]
[WhiteElo "2202"]
[BlackElo "2214"]
[Result "1-0"]
[Round "09"]
[TimeControl "180+2"]
[Date "2023.02.28"]
[WhiteClock "0:00:20"]
[BlackClock "0:00:02"]

1. g3 {[%clk 0:02:51]}  Nf6 {[%clk 0:02:58]} 2. Bg2 {[%clk 0:02:51]}  d5 {[%clk 0:02:57]} 3. d3 {[%clk 0:02:51]}  g6 {[%clk 0:02:57]} 4. e4 {[%clk 0:02:51]}  dxe4 {[%clk 0:02:49]} 5. dxe4 {[%clk 0:02:52]}  Qxd1+ {[%clk 0:02:47]} 6. Kxd1 {[%clk 0:02:53]}  e5 {[%clk 0:02:45]} 7. f3 {[%clk 0:02:53]}  Be6 {[%clk 0:02:42]} 8. Nd2 {[%clk 0:02:49]}  Nc6 {[%clk 0:02:40]} 9. Bh3 {[%clk 0:02:44]}  Bxh3 {[%clk 0:02:32]} 10. Nxh3 {[%clk 0:02:45]}  Bh6 {[%clk 0:02:17]} 11. c3 {[%clk 0:02:41]}  O-O-O {[%clk 0:02:15]} 12. Ke2 {[%clk 0:02:38]}  Rd7 {[%clk 0:02:02]} 13. Nc4 {[%clk 0:02:26]}  Bxc1 {[%clk 0:01:59]} 14. Raxc1 {[%clk 0:02:27]}  Rhd8 {[%clk 0:01:55]} 15. a4 {[%clk 0:02:22]}  h6 {[%clk 0:01:43]} 16. Nf2 {[%clk 0:02:21]}  a6 {[%clk 0:01:35]} 17. Rhd1 {[%clk 0:02:20]}  b5 {[%clk 0:01:31]} 18. axb5 {[%clk 0:02:16]}  axb5 {[%clk 0:01:31]} 19. Rxd7 {[%clk 0:02:16]}  Rxd7 {[%clk 0:01:21]} 20. Na3 {[%clk 0:02:13]}  Na7 {[%clk 0:01:18]} 21. Nd3 {[%clk 0:02:12]}  Re7 {[%clk 0:01:14]} 22. Nc5 {[%clk 0:02:03]}  Nd7 {[%clk 0:01:12]} 23. Nd3 {[%clk 0:01:50]}  Kb7 {[%clk 0:01:10]} 24. Nc2 {[%clk 0:01:46]}  c5 {[%clk 0:01:02]} 25. Ne3 {[%clk 0:01:45]}  Re6 {[%clk 0:00:59]} 26. Ra1 {[%clk 0:01:39]}  Nc6 {[%clk 0:00:56]} 27. Nd5 {[%clk 0:01:33]}  Rd6 {[%clk 0:00:49]} 28. h4 {[%clk 0:01:19]}  Nd8 {[%clk 0:00:39]} 29. b4 {[%clk 0:01:09]}  c4 {[%clk 0:00:35]} 30. Nf2 {[%clk 0:00:45]}  Nb6 {[%clk 0:00:33]} 31. Ne3 {[%clk 0:00:36]}  Na4 {[%clk 0:00:26]} 32. Nd5 {[%clk 0:00:35]}  Ne6 {[%clk 0:00:21]} 33. Nd1 {[%clk 0:00:31]}  Nc7 {[%clk 0:00:17]} 34. N1e3 {[%clk 0:00:31]}  Nxd5 {[%clk 0:00:08]} 35. Nxd5 {[%clk 0:00:32]}  f5 {[%clk 0:00:03]} 36. Ke3 {[%clk 0:00:29]}  fxe4 {[%clk 0:00:02]} 37. fxe4 {[%clk 0:00:30]}  Nb6 {[%clk 0:00:02]} 38. Rd1 {[%clk 0:00:21]}  Nd7 {[%clk 0:00:02]} 39. Rf1 {[%clk 0:00:19]}  h5 {[%clk 0:00:02]} 40. Rf7 {[%clk 0:00:19]}  Kc8 {[%clk 0:00:02]} 41. Rg7 {[%clk 0:00:20]} 1-0


[Site "https://www.chess.com"]